bitfinex/quotes_BTCUSD_20250730
["timestamp","ask_amount","ask_price","bid_price","bid_amount"]
[1753884084872,0.00114583,117850.0,117840.0,0.85849649]
[1753884085366,0.00014583,117850.0,117840.0,0.85849649]
[1753884085595,0.00014583,117850.0,117840.0,0.50475907]
[1753884085814,8.643e-05,117850.0,117840.0,0.50475907]
[1753884086061,8.643e-05,117850.0,117840.0,0.12524]
[1753884086305,0.00530643,117850.0,117840.0,0.39552165]
[1753884086515,0.03121967,117850.0,117840.0,0.40400773]
[1753884086757,0.02599967,117850.0,117840.0,0.84750237]
[1753884086972,0.02599967,117850.0,117840.0,0.93197967]
[1753884088740,0.02599967,117850.0,117840.0,0.9234941]
[1753884088980,0.02599967,117850.0,117840.0,0.5772424]
[1753884089480,0.02599967,117850.0,117840.0,0.58572797]
[1753884089691,0.02599967,117850.0,117840.0,0.58572805]
[1753884089918,0.02599967,117850.0,117840.0,0.57724197]
[1753884090130,0.00848399,117860.0,117850.0,0.025]
[1753884090348,0.01053406,117860.0,117850.0,0.025]
[1753884090593,0.03067312,117860.0,117850.0,0.08787]
[1753884090917,0.02218863,117860.0,117850.0,0.08787]
[1753884091169,0.00522,117860.0,117850.0,0.08787]
[1753884091578,0.01370406,117860.0,117850.0,0.08787]
[1753884092265,0.02218827,117860.0,117850.0,0.08787]
[1753884092475,0.03067262,117860.0,117850.0,0.08787]
[1753884092719,0.02218827,117860.0,117850.0,0.08787]
[1753884092935,0.01370406,117860.0,117850.0,0.08887]
[1753884093811,0.02218827,117860.0,117850.0,0.08887]
[1753884094053,0.01370406,117860.0,117850.0,0.08887]
[1753884094285,0.4569669,117870.0,117860.0,0.025]
[1753884094507,0.46545053,117870.0,117860.0,0.025]
[1753884094725,0.64566326,117870.0,117860.0,0.08787]
[1753884094937,0.68023326,117870.0,117860.0,0.025]
[1753884095149,0.51055481,117870.0,117860.0,0.025]
[1753884095388,0.52763126,117870.0,117860.0,0.025]
[1753884095614,0.52863133,117870.0,117860.0,0.025]
[1753884095835,0.52014756,117870.0,117860.0,0.025]
[1753884096263,0.51166371,117870.0,117860.0,0.025]
[1753884096494,0.48874712,117870.0,117860.0,0.08787]
[1753884096762,0.49723075,117870.0,117860.0,0.08787]
[1753884096994,0.67539305,117870.0,117860.0,0.08787]
[1753884097194,0.72880971,117870.0,117860.0,0.025]
[1753884097450,0.72880971,117870.0,117850.0,0.3040673]
[1753884097677,0.72880971,117870.0,117860.0,0.025]
[1753884097678,0.72563971,117870.0,117860.0,0.025]
[1753884098310,0.54964741,117870.0,117860.0,0.025]
[1753884098537,0.54116378,117870.0,117860.0,0.025]
[1753884098758,0.51894734,117870.0,117860.0,0.025]
[1753884098983,0.12656037,117870.0,117860.0,0.25756285]
[1753884099440,0.12656037,117870.0,117860.0,0.29724749]
[1753884099671,0.12556037,117870.0,117860.0,0.66895383]
[1753884099893,0.12556037,117870.0,117860.0,0.85199388]
[1753884100114,0.12556037,117870.0,117860.0,0.86047801]
[1753884100334,0.12656037,117870.0,117860.0,0.86047801]
[1753884100584,0.12656037,117870.0,117860.0,0.85199388]
[1753884100804,0.12656037,117870.0,117860.0,0.85199395]
[1753884101246,0.12656037,117870.0,117860.0,0.86896243]
[1753884101454,0.12656037,117870.0,117860.0,0.87096243]
[1753884102139,0.12656037,117870.0,117860.0,0.87096251]
[1753884102356,0.12656037,117870.0,117860.0,0.4398782]
[1753884102778,0.12656037,117870.0,117860.0,0.43139385]
[1753884102993,0.12656037,117870.0,117860.0,0.43987827]
[1753884103428,0.12656037,117870.0,117860.0,0.44836211]
[1753884103643,0.12556037,117870.0,117860.0,0.44836211]
[1753884103864,0.12556037,117870.0,117860.0,0.80309953]
[1753884104084,0.12556037,117870.0,117860.0,0.80409953]
[1753884106387,0.12556037,117870.0,117860.0,0.80409961]
[1753884106831,0.12556037,117870.0,117860.0,0.80409917]
[1753884107050,0.12556037,117870.0,117860.0,0.81259725]
[1753884107502,0.12556037,117870.0,117860.0,0.77866014]
[1753884107714,0.12556037,117870.0,117860.0,0.77866022]
[1753884107899,0.12556037,117870.0,117860.0,0.79562913]
[1753884108394,0.12556037,117870.0,117860.0,0.81259761]
[1753884109566,0.1,117870.0,117860.0,0.81259761]
[1753884109792,0.1,117870.0,117860.0,0.79562913]
[1753884110008,0.1,117870.0,117860.0,0.78714471]
[1753884110516,0.10522,117870.0,117860.0,0.1753473]
[1753884110771,0.10522,117870.0,117860.0,0.1596]
[1753884110772,0.6166361,117870.0,117860.0,0.1596]
[1753884111042,1.11783157,117870.0,117860.0,0.003]
[1753884112967,0.75459607,117870.0,117860.0,0.003]
[1753884113210,0.77957697,117870.0,117860.0,0.003]
[1753884113485,0.61838194,117870.0,117860.0,0.003]
[1753884113699,0.78806039,117870.0,117860.0,0.003]
[1753884114184,0.61838194,117870.0,117860.0,0.003]
[1753884114411,0.52841207,117870.0,117860.0,0.003]
[1753884114633,0.53689563,117870.0,117860.0,0.06587]
[1753884114868,0.1302009,117870.0,117860.0,0.23556285]
[1753884115104,0.1302009,117870.0,117860.0,0.26056285]
[1753884115530,0.1302009,117870.0,117860.0,0.27753206]
[1753884115759,0.1249809,117870.0,117860.0,0.43835653]
[1753884116029,0.1249809,117870.0,117860.0,0.83326335]
[1753884116261,0.1249809,117870.0,117860.0,0.84174705]
[1753884116497,0.1249809,117870.0,117860.0,0.87204705]
[1753884116935,0.1249809,117870.0,117860.0,0.86356292]
[1753884117170,0.1249809,117870.0,117860.0,0.87204705]
[1753884117394,0.1249809,117870.0,117860.0,0.86356292]
[1753884117642,0.1271109,117870.0,117860.0,0.37654015]
[1753884117891,0.60007417,117870.0,117860.0,0.003]
[1753884118109,0.6255247,117870.0,117860.0,0.1596]
[1753884118332,0.6255247,117870.0,117860.0,0.028]
[1753884118333,0.62552513,117870.0,117860.0,0.028]
[1753884118559,0.62552556,117870.0,117860.0,0.028]
[1753884118777,0.79466228,117870.0,117860.0,0.003]
[1753884118989,0.78617865,117870.0,117860.0,0.003]
[1753884119424,0.78617865,117870.0,117860.0,0.028]
[1753884119643,0.79466257,117870.0,117860.0,0.003]
[1753884119870,0.78617887,117870.0,117860.0,0.001]
[1753884120083,0.0326,117860.0,117850.0,0.1316]
[1753884120310,0.05479856,117860.0,117850.0,0.1316]
[1753884120528,0.06328284,117860.0,117850.0,0.1316]
[1753884120736,0.03783,117860.0,117850.0,0.1316]
[1753884121015,0.06328276,117860.0,117850.0,0.1316]
[1753884121242,0.08759834,117860.0,117850.0,0.1316]
[1753884121490,0.09608276,117860.0,117850.0,0.1346]
[1753884122200,0.04631413,117860.0,117850.0,0.028]
[1753884122429,0.65885612,117860.0,117850.0,0.028]
[1753884122654,1.0227434,117860.0,117850.0,0.003]
[1753884123206,0.66782093,117860.0,117850.0,0.002]
[1753884123431,0.66782093,117860.0,117840.0,0.15656]
[1753884123629,0.01158485,117850.0,117840.0,0.22221]
[1753884123838,0.01371485,117850.0,117840.0,0.22221]
[1753884124041,0.00523,117850.0,117840.0,0.22221]
[1753884124245,0.00523,117850.0,117840.0,0.39193165]
[1753884124463,0.0031,117850.0,117840.0,0.39193165]
[1753884124883,0.0031,117850.0,117840.0,0.39293165]
[1753884125540,0.0031,117850.0,117840.0,0.22321]
[1753884125783,0.00523,117850.0,117840.0,0.22321]
[1753884126000,0.34523,117850.0,117840.0,0.22321]
[1753884126420,0.35371471,117850.0,117840.0,0.22321]
[1753884126646,0.1249809,117870.0,117850.0,0.17819225]
[1753884126868,0.1249809,117870.0,117860.0,0.74682532]
[1753884127076,0.1249809,117870.0,117860.0,0.75530996]
[1753884127548,0.1249809,117870.0,117860.0,0.76379445]
[1753884127786,0.1249809,117870.0,117860.0,0.77227888]
[1753884128040,0.1249809,117870.0,117860.0,0.77327895]
[1753884128450,0.1249809,117870.0,117860.0,0.78176344]
[1753884128719,0.1249809,117870.0,117860.0,0.87472509]
[1753884128930,0.1249809,117870.0,117860.0,0.86624074]
[1753884129214,0.1249809,117870.0,117860.0,0.51131827]
[1753884129446,0.1249809,117870.0,117860.0,0.50283378]
[1753884129675,0.1249809,117870.0,117860.0,0.51131813]
[1753884129878,0.1249809,117870.0,117860.0,0.90532481]
[1753884130091,0.1249809,117870.0,117860.0,0.89684017]
[1753884130313,0.1249809,117870.0,117860.0,0.51646464]
[1753884130535,0.21766157,117870.0,117860.0,0.13256]
[1753884130752,0.6044578,117870.0,117860.0,0.15756]
[1753884130974,0.6044578,117870.0,117860.0,0.22321]
[1753884130975,0.4702109,117870.0,117860.0,0.22321]
[1753884131199,0.1302109,117870.0,117860.0,0.39290285]
[1753884131404,0.1,117870.0,117860.0,0.89704016]
[1753884131660,0.1,117870.0,117860.0,0.92814016]
[1753884131876,0.1,117870.0,117860.0,0.95363916]
[1753884132092,0.1,117870.0,117860.0,0.95363924]
[1753884132537,0.1,117870.0,117860.0,0.96212337]
[1753884132961,0.1,117870.0,117860.0,0.95363931]
[1753884133226,0.1,117870.0,117860.0,0.90557068]
[1753884133474,0.13091553,117870.0,117860.0,0.3331863]
[1753884133687,0.13091553,117870.0,117860.0,0.50287915]
[1753884134531,0.13091553,117870.0,117860.0,0.3331863]
[1753884134750,0.13091553,117870.0,117860.0,0.47738015]
[1753884135205,0.1,117870.0,117860.0,0.85775559]
[1753884135419,0.1,117870.0,117860.0,0.88067146]
[1753884135637,0.1,117870.0,117860.0,0.84078711]
[1753884135853,0.1,117870.0,117860.0,0.84927146]
[1753884136134,0.1,117870.0,117860.0,0.84078719]
[1753884136362,0.10523,117870.0,117860.0,0.3076873]
[1753884136582,0.10523,117870.0,117860.0,0.47738015]
[1753884136804,0.10523,117870.0,117860.0,0.3076873]
[1753884137035,0.10523,117870.0,117860.0,0.47838015]
[1753884137267,0.10523,117870.0,117860.0,0.48686472]
[1753884137494,0.10523,117870.0,117860.0,0.47738015]
[1753884137736,0.1,117870.0,117860.0,0.49434907]
[1753884137964,0.1,117870.0,117860.0,0.51131756]
[1753884138180,0.1,117870.0,117860.0,0.90822416]
[1753884138402,0.1,117870.0,117860.0,0.53633335]
[1753884138634,0.1,117870.0,117860.0,0.89973995]
[1753884138861,0.1,117870.0,117860.0,0.89125582]
[1753884139098,0.1,117870.0,117860.0,0.90822416]
[1753884140485,0.1,117870.0,117860.0,0.48786472]
[1753884140715,0.1,117870.0,117860.0,0.50483349]
[1753884140944,0.1,117870.0,117860.0,0.9081243]
[1753884141198,0.1,117870.0,117860.0,0.93134017]
[1753884141636,0.1,117870.0,117860.0,0.9398243]
[1753884141850,0.1,117870.0,117860.0,0.93134017]
[1753884142307,0.1,117870.0,117860.0,0.95683917]
[1753884142546,0.1,117870.0,117860.0,0.91665496]
[1753884142764,0.1,117870.0,117860.0,0.8852551]
[1753884142987,0.1,117870.0,117860.0,0.85980162]
[1753884143228,0.10213,117870.0,117860.0,0.50487915]
[1753884143452,0.10523,117870.0,117860.0,0.50487915]
[1753884144155,0.10523,117870.0,117860.0,0.51328372]
[1753884144625,0.10523,117870.0,117860.0,0.51328379]
[1753884144855,0.10523,117870.0,117860.0,0.52176836]
[1753884145338,0.10523,117870.0,117860.0,0.50479915]
[1753884145577,0.10523,117870.0,117860.0,0.52176836]
[1753884146292,0.10523,117870.0,117860.0,0.51328372]
[1753884146550,0.10523,117870.0,117860.0,0.38180372]
[1753884146774,0.10523,117870.0,117860.0,0.2036263]
[1753884147010,0.17551327,117870.0,117860.0,0.15948]
[1753884147674,0.16703,117870.0,117860.0,0.15948]
[1753884148092,0.16703,117870.0,117860.0,0.21933]
[1753884148310,0.16703,117870.0,117860.0,0.38902285]
[1753884149064,0.10523,117870.0,117860.0,0.76083701]
[1753884149663,0.10523,117870.0,117860.0,0.75235252]
[1753884149884,0.10523,117870.0,117860.0,0.76932158]
[1753884150343,0.10523,117870.0,117860.0,0.76083709]
[1753884150552,0.10523,117870.0,117860.0,0.21933]
[1753884150770,0.13553,117870.0,117860.0,0.58265967]
[1753884151176,0.13553,117870.0,117860.0,0.75235252]
[1753884152841,0.13553,117870.0,117860.0,0.76083709]
[1753884153057,0.10523,117870.0,117860.0,0.75235252]
[1753884153282,0.10523,117870.0,117860.0,0.76083716]
[1753884153483,0.10523,117870.0,117860.0,0.76932173]
[1753884153679,0.10523,117870.0,117860.0,0.75235252]
[1753884153883,0.10523,117870.0,117860.0,0.38902285]
[1753884154092,0.10523,117870.0,117860.0,0.75235252]
[1753884154498,0.10523,117870.0,117860.0,0.76932173]
[1753884154699,0.10523,117870.0,117860.0,0.75235252]
[1753884154899,0.10523,117870.0,117860.0,0.58265967]
[1753884155140,0.13543,117870.0,117860.0,0.58265967]
[1753884155385,0.13543,117870.0,117860.0,0.75235252]
[1753884155821,0.13543,117870.0,117860.0,0.58265967]
[1753884156042,0.22842341,117870.0,117860.0,0.003]
[1753884156256,0.78688278,117870.0,117860.0,0.13444]
[1753884156474,0.60023664,117870.0,117860.0,0.15944]
[1753884156685,0.60872034,117870.0,117860.0,0.15944]
[1753884156899,0.41506948,117870.0,117860.0,0.15944]
[1753884157333,0.23690726,117870.0,117860.0,0.15944]
[1753884157547,0.2369069,117870.0,117860.0,0.15944]
[1753884157767,0.23690683,117870.0,117860.0,0.15944]
[1753884157981,0.17541334,117870.0,117860.0,0.15944]
[1753884158195,0.17541327,117870.0,117860.0,0.15944]
[1753884158420,0.1031,117870.0,117860.0,0.75231252]
[1753884158633,0.1,117870.0,117860.0,0.75231252]
[1753884159072,0.10312,117870.0,117860.0,0.75231252]
[1753884159290,0.10312,117870.0,117860.0,0.76079716]
[1753884159497,0.10312,117870.0,117860.0,0.75231252]
[1753884159689,0.10526,117870.0,117860.0,0.75231252]
[1753884159900,0.14584341,117870.0,117860.0,0.21929]
[1753884160125,0.19512549,117880.0,117860.0,0.21929]
[1753884160364,0.01062334,117870.0,117860.0,0.21929]
[1753884160577,0.01910675,117870.0,117860.0,0.21929]
[1753884160990,0.01910675,117870.0,117860.0,0.21629]
[1753884161435,0.01910675,117870.0,117860.0,0.21729]
[1753884161671,0.00214,117870.0,117860.0,0.38698285]
[1753884161888,0.00214,117870.0,117860.0,0.21729]
[1753884162095,0.00214,117870.0,117860.0,0.38908285]
[1753884162510,0.00214,117870.0,117860.0,0.21939]
[1753884162716,0.00214,117870.0,117860.0,0.21839]
[1753884163133,0.00214,117870.0,117860.0,0.39008285]
[1753884163338,0.00214,117870.0,117860.0,0.22039]
[1753884163925,0.00526,117870.0,117860.0,0.21929]
[1753884164177,0.02222668,117870.0,117860.0,0.21929]
[1753884165138,0.01374327,117870.0,117860.0,0.21929]
[1753884165362,0.00214,117870.0,117860.0,0.22139]
[1753884166256,0.01062334,117870.0,117860.0,0.22139]
[1753884166532,0.62861894,117870.0,117860.0,0.003]
[1753884166783,0.32678319,117870.0,117860.0,0.15944]
[1753884167051,0.69011286,117870.0,117860.0,0.15944]
[1753884167304,0.52043434,117870.0,117860.0,0.15944]
[1753884167506,0.15710467,117870.0,117860.0,0.15844]
[1753884167731,0.09561075,117870.0,117860.0,0.15844]
[1753884167982,0.09561075,117870.0,117860.0,0.22039]
[1753884167983,0.00214,117870.0,117860.0,0.22039]
[1753884168174,0.38181494,117880.0,117860.0,0.76500716]
[1753884168436,0.38181494,117880.0,117860.0,0.71364165]
[1753884168678,0.38181494,117880.0,117870.0,0.08485]
[1753884168945,0.39243771,117880.0,117870.0,0.08485]
[1753884169200,0.38395494,117880.0,117870.0,0.08695]
[1753884169428,0.39243771,117880.0,117870.0,0.08695]
[1753884169651,0.40092062,117880.0,117870.0,0.08485]
[1753884170569,0.40887844,117880.0,117870.0,0.08485]
[1753884170801,0.39291283,117880.0,117870.0,0.08485]
[1753884171045,0.34897021,117880.0,117870.0,0.62306812]
[1753884171292,0.00101232,117880.0,117870.0,0.67223589]
[1753884171533,1.232e-05,117880.0,117870.0,0.67223589]
[1753884171981,0.38680516,117890.0,117870.0,0.65526812]
[1753884172219,0.38695096,117890.0,117880.0,0.1314]
[1753884172454,0.38695096,117890.0,117880.0,0.19335]
[1753884172455,0.38909096,117890.0,117880.0,0.19335]
[1753884172691,0.39757308,117890.0,117880.0,0.19335]
[1753884172922,0.40605527,117890.0,117880.0,0.19335]
[1753884173170,0.40917527,117890.0,117880.0,0.19335]
[1753884174645,0.43519204,117890.0,117880.0,0.19335]
[1753884174873,0.44467437,117890.0,117880.0,0.19335]
[1753884175091,0.43619247,117890.0,117880.0,0.19335]
[1753884175329,0.43619343,117890.0,117880.0,0.19335]
[1753884175590,0.42771117,117890.0,117880.0,0.19335]
[1753884175810,0.41922898,117890.0,117880.0,0.19335]
[1753884176252,0.42771117,117890.0,117880.0,0.19335]
[1753884176702,0.41922898,117890.0,117880.0,0.19335]
[1753884176893,0.39734532,117890.0,117880.0,0.19335]
[1753884177375,0.40582765,117890.0,117880.0,0.19335]
[1753884177594,0.40582751,117890.0,117880.0,0.19335]
[1753884178057,0.38038122,117890.0,117880.0,0.36301406]
[1753884178284,0.03512122,117890.0,117880.0,0.98634996]
[1753884178502,0.02716257,117890.0,117880.0,1.01179833]
[1753884178696,0.02716257,117890.0,117880.0,1.02881164]
[1753884178944,0.02716257,117890.0,117880.0,1.03729433]
[1753884179360,0.02716257,117890.0,117880.0,1.02881164]
[1753884179613,0.02716257,117890.0,117880.0,1.02881171]
[1753884180083,0.02616257,117890.0,117880.0,1.02032887]
[1753884180297,0.02616257,117890.0,117880.0,0.57217056]
[1753884180525,0.00953311,117900.0,117880.0,0.95246641]
[1753884180764,0.00953311,117900.0,117890.0,0.025]
[1753884180977,0.001052,117900.0,117890.0,0.08733]
[1753884181195,0.001052,117900.0,117890.0,0.08937]
[1753884181906,0.02413444,117900.0,117890.0,0.08733]
[1753884182154,0.52156727,117900.0,117890.0,0.15636]
[1753884182376,0.32787281,117900.0,117890.0,0.15636]
[1753884182606,0.3193917,117900.0,117890.0,0.15636]
[1753884182851,0.072072,117900.0,117890.0,0.15636]
[1753884183100,0.02636529,117900.0,117890.0,0.43426208]
[1753884183325,0.02636529,117900.0,117890.0,1.00009597]
[1753884183776,0.02736529,117900.0,117890.0,1.00009597]
[1753884183925,0.02736529,117900.0,117890.0,0.99161399]
[1753884184157,0.02636529,117900.0,117890.0,1.00009597]
[1753884184532,0.02636529,117900.0,117890.0,1.00109597]
[1753884184732,0.02636529,117900.0,117890.0,0.99261399]
[1753884184945,0.02636529,117900.0,117890.0,1.00109611]
[1753884185142,0.02636529,117900.0,117890.0,0.54645697]
[1753884185514,0.02636529,117900.0,117890.0,0.91826897]
[1753884185725,0.02636529,117900.0,117890.0,0.92675123]
[1753884185950,0.02636529,117900.0,117890.0,0.94371533]
[1753884186138,0.02636529,117900.0,117890.0,0.9437154]
[1753884186308,0.02636529,117900.0,117890.0,0.93523335]
[1753884186532,0.001052,117900.0,117890.0,0.94371533]
[1753884186985,0.001052,117900.0,117890.0,0.96920433]
[1753884189237,0.001052,117900.0,117890.0,0.4490683]
[1753884189446,0.001052,117900.0,117890.0,0.41286845]
[1753884189686,0.001052,117900.0,117890.0,0.5441883]
[1753884189936,0.01998444,117900.0,117890.0,0.3081673]
[1753884190165,0.03161569,117900.0,117890.0,0.2187973]
[1753884190379,0.11017907,117900.0,117890.0,0.2187973]
[1753884190593,1.00993997,117900.0,117890.0,0.15932]
[1753884190766,0.6466103,117900.0,117890.0,0.15932]
[1753884191012,0.6466103,117900.0,117890.0,0.028]
[1753884191261,1.00993997,117900.0,117890.0,0.15932]
[1753884191465,0.47697502,117900.0,117890.0,0.15932]
[1753884191639,0.65509199,117900.0,117890.0,0.15932]
[1753884191879,0.47697458,117900.0,117890.0,0.15932]
[1753884192084,0.49393788,117900.0,117890.0,0.15932]
[1753884192312,0.49393788,117900.0,117890.0,0.159532]
[1753884192798,0.66357316,117900.0,117890.0,0.159532]
[1753884193191,0.43321612,117900.0,117890.0,0.159532]
[1753884193418,0.60285191,117900.0,117890.0,0.159532]
[1753884193628,1.00994018,117900.0,117890.0,0.159492]
[1753884194897,0.64661051,117900.0,117890.0,0.159492]
[1753884196703,0.39413444,117900.0,117890.0,0.159492]
[1753884196917,0.39413444,117900.0,117890.0,0.221822]
[1753884197126,0.36313444,117900.0,117890.0,0.221822]
[1753884197404,0.37161591,117900.0,117890.0,0.221822]
[1753884198266,0.4128976,117900.0,117890.0,0.221822]
[1753884198496,0.60545177,117900.0,117890.0,0.159492]
[1753884199284,0.65769177,117900.0,117890.0,0.159492]
[1753884199524,1.01254011,117900.0,117890.0,0.003212]
[1753884199824,1.24574643,117900.0,117890.0,0.003212]
[1753884200082,1.45368271,117900.0,117890.0,0.003212]
[1753884200305,6.73816001,117900.0,117890.0,0.003212]
[1753884200541,6.73816001,117900.0,117890.0,0.002212]
[1753884200782,0.89035304,117900.0,117890.0,0.000212]
[1753884201012,1.26955812,117900.0,117890.0,0.000212]
[1753884201248,1.25368271,117900.0,117890.0,0.000212]
[1753884201474,1.27551152,117900.0,117890.0,0.000212]
[1753884201931,1.27651152,117900.0,117890.0,0.000212]
[1753884202598,1.27551152,117900.0,117890.0,0.000212]
[1753884202813,1.14423152,117900.0,117890.0,0.000212]
[1753884203262,1.14079422,117900.0,117890.0,0.000212]
[1753884203491,0.47654884,117900.0,117890.0,0.000212]
[1753884203723,0.75454574,117900.0,117890.0,0.062542]
[1753884204666,0.003052,117900.0,117890.0,0.79090324]
[1753884204909,0.003052,117900.0,117890.0,0.78242105]
[1753884205172,0.001052,117900.0,117890.0,0.79090338]
[1753884205393,0.002052,117900.0,117890.0,0.79090338]
[1753884205872,0.001052,117900.0,117890.0,0.79190338]
[1753884206094,0.001052,117900.0,117890.0,0.80886755]
[1753884206525,0.001052,117900.0,117890.0,0.80038557]
[1753884206967,0.001052,117900.0,117890.0,0.80856763]
[1753884207196,0.001052,117900.0,117890.0,0.7916036]
[1753884207415,0.07093284,117920.0,117900.0,0.0317]
[1753884207674,0.07887004,117920.0,117900.0,0.18794]
[1753884207854,0.07887004,117920.0,117910.0,0.05882]
[1753884208089,0.06401976,117920.0,117910.0,0.05882]
[1753884208759,0.07249986,117920.0,117910.0,0.05882]
[1753884209223,0.08298018,117920.0,117910.0,0.05882]
[1753884209462,0.25258669,117920.0,117910.0,0.05882]
[1753884209696,0.25258669,117920.0,117900.0,0.19092]
[1753884209697,0.01696114,117910.0,117900.0,0.21506]
[1753884209932,0.03603257,117910.0,117900.0,0.21506]
[1753884210142,0.03905257,117910.0,117900.0,0.21506]
[1753884210356,0.03057175,117910.0,117900.0,0.21506]
[1753884210790,0.20867361,117910.0,117900.0,0.08382]
[1753884211020,0.20867361,117910.0,117900.0,0.21506]
[1753884211258,0.022091,117910.0,117900.0,0.21506]
[1753884211759,0.03057175,117910.0,117900.0,0.21506]
[1753884212016,0.2171545,117910.0,117900.0,0.15624]
[1753884212286,0.04005257,117910.0,117900.0,0.15624]
[1753884212538,0.04005257,117910.0,117900.0,0.21506]
[1753884212812,0.20967397,117910.0,117900.0,0.21506]
[1753884214062,0.38853412,117910.0,117900.0,0.21506]
[1753884214286,0.36309136,117910.0,117900.0,0.21506]
[1753884214722,0.35159039,117910.0,117900.0,0.21721]
[1753884214945,0.341,117910.0,117900.0,0.25049]
[1753884215605,0.341,117910.0,117900.0,0.99333921]
[1753884215606,0.001,117910.0,117900.0,0.99333921]
[1753884216504,0.02538289,117920.0,117910.0,0.17810179]
[1753884216728,0.02538289,117920.0,117910.0,0.36270991]
[1753884216946,0.02538289,117920.0,117910.0,0.43299059]
[1753884217181,0.02538289,117920.0,117910.0,0.42450991]
[1753884217603,0.02538289,117920.0,117910.0,0.41602909]
[1753884217816,0.02538289,117920.0,117910.0,0.40754819]
[1753884218685,0.02538289,117920.0,117910.0,0.41602923]
[1753884218857,0.02538289,117920.0,117910.0,0.40754819]
[1753884219075,0.02538289,117920.0,117910.0,0.2389273]
[1753884219862,0.03386264,117920.0,117910.0,0.2075273]
[1753884220081,0.05293249,117920.0,117910.0,0.3026473]
[1753884220295,0.06141259,117920.0,117910.0,0.3026473]
[1753884220506,0.06989291,117920.0,117910.0,0.1714473]
[1753884220725,0.24251942,117920.0,117910.0,0.3004973]
[1753884220932,0.23403967,117920.0,117910.0,0.3004973]
[1753884221136,0.06443309,117920.0,117910.0,0.3004973]
[1753884221354,0.07291341,117920.0,117910.0,0.3004973]
[1753884221573,0.26529614,117920.0,117910.0,0.21602]
[1753884221802,0.29699614,117920.0,117910.0,0.1572]
[1753884222023,0.33897604,117920.0,117910.0,0.1572]
[1753884223080,0.33049579,117920.0,117910.0,0.1572]
[1753884223302,1.02504349,117920.0,117910.0,0.1572]
[1753884223531,1.15624349,117920.0,117910.0,0.001]
[1753884224166,1.15624349,117920.0,117910.0,0.026]
[1753884224406,1.15624349,117920.0,117910.0,0.001]
[1753884224407,1.17369251,117920.0,117910.0,0.001]
[1753884225327,1.25816981,117920.0,117910.0,0.001]
[1753884225750,1.45816981,117920.0,117910.0,0.001]
[1753884225964,1.45023374,117920.0,117910.0,0.001]
[1753884226172,1.45816981,117920.0,117910.0,0.001]
[1753884227477,1.45816981,117920.0,117910.0,0.00060531]
[1753884227700,1.4799963,117920.0,117910.0,0.00060531]
[1753884229226,1.47999622,117920.0,117910.0,0.00060531]
[1753884229641,0.92544852,117920.0,117910.0,0.00060531]
[1753884229849,1.12696981,117920.0,117910.0,0.00060531]
[1753884230197,1.25816981,117920.0,117910.0,0.00060531]
[1753884230844,0.90362211,117920.0,117910.0,0.00060531]
[1753884231058,1.25816981,117920.0,117910.0,0.00060531]
[1753884231285,1.26412306,117920.0,117910.0,0.00060531]
[1753884231722,1.2800014,117920.0,117910.0,0.00060531]
[1753884232161,1.28000268,117920.0,117910.0,0.00060531]
[1753884235181,1.28001032,117920.0,117910.0,0.00060531]
[1753884236489,1.33101032,117920.0,117910.0,0.00060531]
[1753884236707,1.28001032,117920.0,117910.0,0.00060531]
[1753884236910,1.28865446,117920.0,117910.0,0.00060531]
[1753884237366,6.8518463,117920.0,117910.0,0.00060531]
[1753884237813,6.88446765,117920.0,117910.0,0.00060531]
[1753884238248,6.8518463,117920.0,117910.0,0.00060531]
[1753884238725,6.87014184,117920.0,117910.0,0.00060531]
[1753884239379,6.87214184,117920.0,117910.0,0.00060531]
[1753884239619,0.60854732,117900.0,117890.0,0.000212]
[1753884239834,6.2033747,117900.0,117890.0,0.000212]
[1753884240048,6.27216041,117900.0,117890.0,0.000212]
[1753884240737,5.76191286,117900.0,117890.0,0.000212]
[1753884240945,1.2064247,117900.0,117890.0,0.000212]
[1753884241417,0.91727523,117900.0,117890.0,0.063122]
[1753884241642,0.70499171,117900.0,117890.0,0.066332]
[1753884241865,1.05970215,117900.0,117890.0,0.066332]
[1753884242096,1.06180215,117900.0,117890.0,0.063122]
[1753884242337,1.09534981,117900.0,117890.0,0.061142]
[1753884242603,1.12734981,117900.0,117890.0,0.000212]
[1753884242826,1.26166711,117900.0,117890.0,0.000212]
[1753884243678,1.24577976,117900.0,117890.0,0.000212]
[1753884243889,1.17982366,117900.0,117890.0,0.063122]
[1753884244093,1.17677366,117900.0,117890.0,0.063122]
[1753884244510,1.14627366,117900.0,117890.0,0.063122]
[1753884244932,1.05969636,117900.0,117890.0,0.063122]
[1753884245144,0.92853636,117900.0,117890.0,0.066332]
[1753884245348,1.05969636,117900.0,117890.0,0.066332]
[1753884245571,1.04381246,117900.0,117890.0,0.066332]
[1753884245788,1.05969309,117900.0,117890.0,0.066332]
[1753884246424,0.69646125,117900.0,117890.0,0.096432]
[1753884246626,0.54049256,117900.0,117890.0,0.152932]
[1753884246843,0.68857572,117900.0,117890.0,0.152932]
[1753884247288,0.67413591,117900.0,117890.0,0.152932]
[1753884247500,1.02884635,117900.0,117890.0,0.063122]
[1753884247713,1.03094635,117900.0,117890.0,0.088122]
[1753884247939,0.35641754,117900.0,117890.0,0.088122]
[1753884248160,0.14757725,117900.0,117890.0,0.154332]
[1753884248379,0.15605851,117900.0,117890.0,0.154332]
[1753884248588,0.03337984,117900.0,117890.0,0.154332]
[1753884249005,0.02544377,117900.0,117890.0,0.154332]
[1753884249230,0.03338489,117900.0,117890.0,0.154332]
[1753884249441,0.03392524,117900.0,117890.0,0.154332]
[1753884249653,0.02544377,117900.0,117890.0,0.154332]
[1753884249857,0.01696244,117900.0,117890.0,0.154332]
[1753884250694,0.02544384,117900.0,117890.0,0.154332]
[1753884250897,0.01696244,117900.0,117890.0,0.154332]
[1753884251326,0.02544384,117900.0,117890.0,0.154332]
[1753884251546,0.01696244,117900.0,117890.0,0.154332]
[1753884251880,0.02544384,117900.0,117890.0,0.154332]
[1753884252088,0.02544377,117900.0,117890.0,0.154332]
[1753884252736,0.03392524,117900.0,117890.0,0.154332]
[1753884252953,0.02544377,117900.0,117890.0,0.154332]
[1753884253366,0.01696244,117900.0,117890.0,0.154332]
[1753884254012,0.02544384,117900.0,117890.0,0.154332]
[1753884254438,0.01696244,117900.0,117890.0,0.154332]